fUSD/lending_fUSD_20240904
["ID","MTS","AMOUNT","RATE_DAILY","PERIOD"]
[337130040,1725449306450,-853.85,0.0004,120]
[337130041,1725449306474,-1053.24,0.0004,120]
[337130042,1725449306496,-500.0,0.0004,120]
[337130043,1725449306520,-2000.0,0.0004,41]
[337130044,1725449306544,-5323.25,0.0004,120]
[337130045,1725449306569,-3003.897337,0.0004001,41]
[337130046,1725449306591,-5000.0,0.00040019,120]
[337130047,1725449306614,-5000.0,0.00040019,90]
[337130048,1725449306637,-194.69472489,0.00040107,120]
[337130049,1725449306662,-151.0,0.0004011,120]
[337130050,1725449306686,-667.4,0.00040135,120]
[337130051,1725449306710,-212.60796793,0.000403,120]
[337130052,1725449306733,-624.85,0.000404,120]
[337130053,1725449306757,-1000000.0,0.000405,120]
[337130054,1725449306780,-1000000.0,0.000405,120]
[337130055,1725449306803,-1000000.0,0.000405,120]
[337130056,1725449306826,-1000000.0,0.000405,120]
[337130057,1725449306850,-776173.37636333,0.000405,120]
[337130059,1725449323240,-223826.62363667,0.000405,120]
[337130060,1725449323264,-1000000.0,0.000405,120]
[337130061,1725449323287,-1000000.0,0.000405,120]
[337130062,1725449323314,-1000000.0,0.000405,120]
[337130063,1725449323336,-150.0,0.000405,120]
[337130064,1725449323358,-504.78370277,0.000406,120]
[337130065,1725449323383,-580.0,0.00040746,60]
[337130066,1725449323405,-152.20605849,0.000409,120]
[337130067,1725449323428,-152.20605849,0.000409,120]
[337130068,1725449323450,-152.20605849,0.000409,120]
[337130069,1725449323473,-152.20605849,0.000409,120]
[337130070,1725449323496,-152.20605849,0.000409,120]
[337130071,1725449323518,-152.20605849,0.000409,120]
[337130072,1725449323541,-152.20605849,0.000409,120]
[337130073,1725449323564,-152.20605849,0.000409,120]
[337130074,1725449323586,-152.20605849,0.000409,120]
[337130075,1725449323612,-50000.0,0.00041,41]
[337130076,1725449323635,-4417.2,0.00041,120]
[337130077,1725449323657,-419.99999901,0.00041,120]
[337130078,1725449323686,-1000000.0,0.00041,120]
[337130079,1725449323711,-1000000.0,0.00041,120]
[337130080,1725449323736,-718731.53813514,0.00041,120]
[337130086,1725449405876,250.0,0.00013058,2]
[337130108,1725449432215,-165.63091281,0.0001318,2]
[337130109,1725449432224,-160.32,0.00013254,2]
[337130110,1725449432233,-166.39326529,0.0001328,2]
[337130111,1725449432244,-33.60673471,0.0001328,2]
[337130112,1725449432256,-907.51,0.00013306,2]
[337130113,1725449432265,-343.2930258,0.00013306,2]
[337130114,1725449432277,-21.2369742,0.00013306,2]
[337130115,1725449432286,-384.60417935,0.00013306,2]
[337130116,1725449432297,-615.39582065,0.00013306,2]
[337130117,1725449432306,-8753.14025646,0.00013306,2]
[337130118,1725449432317,-6781.05533555,0.00013306,2]
[337130119,1725449432328,-3600.58662292,0.00013306,2]
[337130120,1725449432341,-308.06435349,0.00013306,2]
[337130121,1725449432355,-11006.06686746,0.00013306,2]
[337130122,1725449432364,-5084.7608,0.0001332,2]
[337130123,1725449432372,-194.4,0.00013568,2]
[337130124,1725449432383,-200.0,0.000136,4]
[337130125,1725449432391,-294.7,0.000136,2]
[337130126,1725449432400,-150.0,0.00013698,2]
[337130127,1725449432409,-500.0,0.00013699,2]
[337130128,1725449432419,-500.0,0.000137,5]
[337130129,1725449432428,-700.0,0.000138,5]
[337130130,1725449432438,-1000.0,0.000139,5]
[337130131,1725449432447,-386.86783398,0.00014,2]
[337130132,1725449432456,-6092.26,0.00014068,2]
[337130133,1725449432465,-1434.96,0.00014068,2]
[337130134,1725449432475,-2641.74,0.00014068,2]
[337130135,1725449432483,-1743.77,0.00014068,2]
[337130137,1725449432493,-2069.39,0.00014068,2]
[337130138,1725449432503,-4222.26,0.00014068,2]
[337130139,1725449432523,-2718.35,0.00014068,2]
[337130140,1725449432532,-2191.73,0.00014068,2]
[337130141,1725449432541,-2886.04,0.00014068,2]
[337130143,1725449432551,-5307.94,0.00014068,2]
[337130144,1725449432560,-1668.35,0.00014068,2]
[337130145,1725449432569,-3836.89,0.00014068,2]
[337130146,1725449432579,-1987.06,0.00014068,2]
[337130147,1725449432588,-6705.01,0.00014068,2]
[337130149,1725449432597,-3942.48,0.00014068,2]
[337130150,1725449432606,-2468.26,0.00014068,2]
[337130152,1725449432615,-3967.05,0.00014068,2]
[337130154,1725449432624,-3336.2,0.00014068,2]
[337130155,1725449432634,-17292.54,0.00014068,2]
[337130157,1725449432643,-1717.06,0.00014068,2]
[337130159,1725449432652,-12177.64,0.00014068,2]
[337130160,1725449432661,-5236.96566412,0.00014068,2]
[337130161,1725449432673,-768.2038036,0.00014068,2]
[337130166,1725449438432,-162.59,0.0001317,2]
[337130167,1725449438442,-162.59,0.00013296,2]
[337130168,1725449438451,-162.59,0.00013296,2]
[337130169,1725449438461,-162.59,0.00013296,2]
[337130170,1725449438470,-162.59,0.00013296,2]
[337130171,1725449438479,-162.59,0.00013296,2]
[337130172,1725449438488,-162.59,0.00013296,2]
[337130173,1725449438497,-162.59,0.00013296,2]
[337130174,1725449438507,-162.59,0.00013296,2]
[337130175,1725449438517,-162.59,0.00013296,2]
[337130176,1725449438526,-4275.99999999,0.00014068,2]
[337130177,1725449438538,-3639.73053229,0.00014068,2]
[337130178,1725449438547,-3322.17,0.00014068,2]
[337130179,1725449438557,-1012.16,0.00014068,2]
[337130180,1725449438566,-8049.63,0.00014068,2]
[337130181,1725449438575,-2670.62,0.00014068,2]
[337130182,1725449438584,-4068.02,0.00014068,2]
[337130183,1725449438593,-500.0,0.00014068,2]
[337130184,1725449438602,-500.0,0.00014068,2]
[337130185,1725449438612,-500.0,0.00014068,2]
[337130186,1725449438621,-500.0,0.00014068,2]
[337130187,1725449438630,-500.0,0.00014068,2]
[337130188,1725449438640,-500.0,0.00014068,2]
[337130189,1725449438649,-500.0,0.00014068,2]
[337130190,1725449438659,-500.0,0.00014068,2]
[337130191,1725449438668,-2881.94,0.0001408,2]
[337130192,1725449438678,-13589.2355,0.00014168,2]
[337130193,1725449438687,-176.04079031,0.0001418,2]
[337130214,1725449440205,-1003.5192,0.0001418,2]
[337130215,1725449440216,-283.722736,0.0001418,2]
[337130216,1725449440282,-41271.30577094,0.0001418,2]
[337130217,1725449440292,-421.15547501,0.00014216,2]
[337130218,1725449440301,-419.3974769,0.00014267,2]
[337130219,1725449440311,-21533.13736997,0.00014268,2]
[337130262,1725449447344,-42708.89503003,0.00014268,2]
[337130263,1725449447357,-342.63148884,0.00014268,2]
[337130264,1725449447367,-239.46533904,0.00014269,2]
[337130265,1725449447376,-499.99,0.00014272,2]
[337130266,1725449447386,-2028.1189,0.00014272,2]
[337130267,1725449447395,-12494.2177,0.00014272,2]
[337130268,1725449447405,-172.28942443,0.00014278,2]
[337130269,1725449447414,-364.55703173,0.00014279,2]
[337130270,1725449447423,-1910.95091378,0.00014279,2]
[337130271,1725449447434,-628.26592107,0.00014279,2]
[337130272,1725449447443,-342.63148881,0.00014297,2]
[337130273,1725449447452,-150.0,0.000143,2]
[337130274,1725449447461,-300.000001,0.000143,3]
[337130275,1725449447470,-497.90234412,0.00014304,2]
[337130276,1725449447479,-342.63148881,0.00014326,2]
[337130277,1725449447487,-873.54639,0.0001433,2]
[337130278,1725449447497,-624.0,0.00014339,2]
[337130279,1725449447506,-1546.0,0.00014339,2]
[337130280,1725449447515,-447.0,0.00014339,2]
[337130281,1725449447524,-13467.0,0.00014339,2]
[337130282,1725449447533,-172.28942443,0.00014343,2]
[337130283,1725449447542,-342.63148881,0.00014355,2]
[337130284,1725449447551,-1747.14043754,0.00014358,2]
[337130285,1725449447560,-151.0,0.00014358,2]
[337130286,1725449447569,-873.57021877,0.00014358,2]
[337130287,1725449447578,-6988.56175016,0.00014359,2]
[337130288,1725449447587,-151.0,0.00014359,2]
[337130289,1725449447596,-151.0,0.00014359,2]
[337130290,1725449447605,-151.0,0.00014365,2]
[337130291,1725449447614,-2461.64325602,0.00014366,2]
[337130292,1725449447623,-1747.14043754,0.00014367,2]
[337130293,1725449447633,-159.52,0.00014367,2]
[337130294,1725449447642,-533.47,0.00014367,2]
[337130295,1725449447651,-500.0,0.00014367,2]
[337130296,1725449447661,-500.0,0.00014367,2]
[337130297,1725449447670,-8906.18510821,0.00014368,2]
[337130298,1725449447679,-1258.15,0.00014368,2]
[337130299,1725449447689,-5539.45,0.00014368,2]
[337130300,1725449447698,-1688.75,0.00014368,2]
[337130301,1725449447707,-1814.06,0.00014368,2]
[337130302,1725449447716,-13416.06,0.00014368,2]
[337130303,1725449447725,-535.76,0.00014368,2]
[337130304,1725449447735,-2485.24,0.00014368,2]
[337130305,1725449447744,-3433.42,0.00014368,2]
[337130306,1725449447754,-2953.99,0.00014368,2]
[337130307,1725449447763,-1692.86,0.00014368,2]
[337130308,1725449447772,-2697.86,0.00014368,2]
[337130309,1725449447782,-2455.98,0.00014368,2]
[337130310,1725449447791,-1458.47,0.00014368,2]
[337130311,1725449447800,-1539.43,0.00014368,2]
[337130312,1725449447809,-1663.46,0.00014368,2]
[337130313,1725449447819,-1621.85,0.00014368,2]
[337130314,1725449447828,-1537.73,0.00014368,2]
[337130315,1725449447837,-2881.94,0.00014368,2]
[337130316,1725449447847,-6092.26,0.00014368,2]
[337130317,1725449447856,-1434.96,0.00014368,2]
[337130318,1725449447865,-2641.74,0.00014368,2]
[337130319,1725449447874,-1998.34,0.00014368,2]
[337130320,1725449447884,-1743.77,0.00014368,2]
[337130321,1725449448062,-2069.39,0.00014368,2]
[337130322,1725449448079,-1619.01,0.00014368,2]
[337130323,1725449448088,-4222.26,0.00014368,2]
[337130324,1725449448097,-2718.35,0.00014368,2]
[337130325,1725449448106,-2191.73,0.00014368,2]
[337130326,1725449448115,-2886.04,0.00014368,2]
[337130327,1725449448124,-3130.22,0.00014368,2]
[337130328,1725449448133,-5307.94,0.00014368,2]
[337130329,1725449448142,-1955.73,0.00014368,2]
[337130330,1725449448151,-2371.43,0.00014368,2]
[337130331,1725449448160,-1668.35,0.00014368,2]
[337130332,1725449448169,-3836.89,0.00014368,2]
[337130333,1725449448178,-1987.06,0.00014368,2]
[337130334,1725449448187,-1686.85,0.00014368,2]
[337130335,1725449448196,-6705.01,0.00014368,2]
[337130336,1725449448205,-3942.48,0.00014368,2]
[337130337,1725449448214,-2468.26,0.00014368,2]
[337130338,1725449448224,-2723.93,0.00014368,2]
[337130339,1725449448233,-3967.05,0.00014368,2]
[337130340,1725449448242,-2514.65,0.00014368,2]
[337130341,1725449448251,-3336.2,0.00014368,2]
[337130342,1725449448261,-2580.18,0.00014368,2]
[337130343,1725449448270,-2090.96,0.00014368,2]
[337130344,1725449448281,-17292.54,0.00014368,2]
[337130345,1725449448290,-1717.06,0.00014368,2]
[337130346,1725449448300,-12177.64,0.00014368,2]
[337130347,1725449448309,-2568.97,0.00014368,2]
[337130348,1725449448318,-13920.9,0.00014368,2]
[337130349,1725449448327,-3322.17,0.00014368,2]
[337130350,1725449448336,-1012.16,0.00014368,2]
[337130351,1725449448346,-8049.63,0.00014368,2]
[337130352,1725449448359,-1849.72,0.00014368,2]
[337130353,1725449448369,-2670.62,0.00014368,2]
[337130354,1725449448378,-4004.18,0.00014368,2]
[337130355,1725449448388,-4068.02,0.00014368,2]
[337130356,1725449448397,-5088.19,0.00014368,2]
[337130357,1725449448407,-3368.35,0.00014368,2]
[337130358,1725449448416,-500.0,0.00014368,2]
[337130359,1725449448426,-5233.57,0.00014368,2]
[337130360,1725449448436,-500.0,0.00014368,2]
[337130361,1725449448447,-2722.26,0.00014368,2]
[337130362,1725449448457,-500.0,0.00014368,2]
[337130363,1725449448467,-500.0,0.00014368,2]
[337130364,1725449448476,-4120.65,0.00014368,2]
[337130365,1725449448486,-500.0,0.00014368,2]
[337130366,1725449448495,-500.0,0.00014368,2]
[337130367,1725449448505,-3266.49,0.00014368,2]
[337130368,1725449448514,-500.0,0.00014368,2]
[337130369,1725449448523,-500.0,0.00014368,2]
[337130370,1725449448534,-2686.82,0.00014368,2]
[337130371,1725449448544,-3467.38,0.00014368,2]
[337130372,1725449448554,-2725.67,0.00014368,2]
[337130373,1725449448563,-159.52,0.00014368,2]
[337130374,1725449448572,-1969.53,0.00014368,2]
[337130375,1725449448582,-2189.75,0.00014368,2]
[337130376,1725449448592,-4297.84,0.00014368,2]
[337130377,1725449448601,-3268.74,0.00014368,2]
[337130378,1725449448611,-533.47,0.00014368,2]
[337130379,1725449448620,-500.0,0.00014368,2]
[337130380,1725449448630,-500.0,0.00014368,2]
[337130381,1725449448640,-4367.85109385,0.00014368,2]
[337130382,1725449448650,-151.0,0.00014368,2]
[337130383,1725449448659,-151.0,0.00014368,2]
[337130384,1725449448669,-151.0,0.00014368,2]
[337130385,1725449448678,-151.0,0.00014368,2]
[337130386,1725449448688,-151.0,0.00014368,2]
[337130387,1725449448698,-151.0,0.00014368,2]
[337130388,1725449448707,-23201.5,0.00014369,2]
[337130389,1725449448717,-5539.45,0.00014369,2]
[337130390,1725449448727,-1688.75,0.00014369,2]
[337130391,1725449448737,-13416.06,0.00014369,2]
[337130392,1725449448746,-535.76,0.00014369,2]
[337130393,1725449448756,-3433.42,0.00014369,2]
[337130394,1725449448766,-2953.99,0.00014369,2]
[337130395,1725449448777,-2697.86,0.00014369,2]
[337130396,1725449448787,-2455.98,0.00014369,2]
[337130397,1725449448796,-1458.47,0.00014369,2]
[337130398,1725449448806,-1539.43,0.00014369,2]
[337130399,1725449448816,-1663.46,0.00014369,2]
[337130400,1725449448825,-1621.85,0.00014369,2]
[337130401,1725449448835,-1537.73,0.00014369,2]
[337130402,1725449448845,-6092.26,0.00014369,2]
[337130403,1725449448854,-1434.96,0.00014369,2]
[337130404,1725449448864,-2641.74,0.00014369,2]
[337130405,1725449448873,-1998.34,0.00014369,2]
[337130406,1725449448883,-1743.77,0.00014369,2]
[337130407,1725449448894,-2069.39,0.00014369,2]
[337130408,1725449448904,-1619.01,0.00014369,2]
[337130409,1725449448913,-4222.26,0.00014369,2]
[337130410,1725449448923,-2718.35,0.00014369,2]
[337130411,1725449448934,-2191.73,0.00014369,2]
[337130412,1725449448944,-2886.04,0.00014369,2]
[337130413,1725449448954,-3130.22,0.00014369,2]
[337130414,1725449448964,-5307.94,0.00014369,2]
[337130415,1725449448973,-1955.73,0.00014369,2]
[337130416,1725449448983,-2371.43,0.00014369,2]
[337130417,1725449448992,-1668.35,0.00014369,2]
[337130418,1725449449002,-3836.89,0.00014369,2]
[337130419,1725449449012,-1987.06,0.00014369,2]
[337130420,1725449449021,-1686.85,0.00014369,2]
[337130421,1725449449033,-6705.01,0.00014369,2]
[337130422,1725449449050,-3942.48,0.00014369,2]
[337130423,1725449449059,-2468.26,0.00014369,2]
[337130424,1725449449069,-2723.93,0.00014369,2]
[337130425,1725449449078,-3967.05,0.00014369,2]
[337130426,1725449449088,-2514.65,0.00014369,2]
[337130427,1725449449098,-3336.2,0.00014369,2]
[337130428,1725449449108,-2580.18,0.00014369,2]
[337130429,1725449449118,-2090.96,0.00014369,2]
[337130430,1725449449128,-17292.54,0.00014369,2]
[337130431,1725449449138,-1717.06,0.00014369,2]
[337130432,1725449449147,-12177.64,0.00014369,2]
[337130433,1725449449156,-2568.97,0.00014369,2]
[337130434,1725449449166,-13920.9,0.00014369,2]
[337130435,1725449449175,-3322.17,0.00014369,2]
[337130436,1725449449184,-1012.16,0.00014369,2]
[337130437,1725449449194,-8049.63,0.00014369,2]
[337130438,1725449449203,-1849.72,0.00014369,2]
[337130439,1725449449213,-2670.62,0.00014369,2]
[337130440,1725449449222,-4004.18,0.00014369,2]
[337130441,1725449449231,-4068.02,0.00014369,2]
[337130442,1725449449241,-5088.19,0.00014369,2]
[337130443,1725449449251,-3368.35,0.00014369,2]
[337130444,1725449449261,-500.0,0.00014369,2]
[337130445,1725449449270,-5233.57,0.00014369,2]
[337130446,1725449449279,-500.0,0.00014369,2]
[337130447,1725449449289,-2722.26,0.00014369,2]
[337130448,1725449449299,-500.0,0.00014369,2]
[337130449,1725449449308,-500.0,0.00014369,2]
[337130450,1725449449317,-4120.65,0.00014369,2]
[337130451,1725449449326,-500.0,0.00014369,2]
[337130452,1725449449336,-500.0,0.00014369,2]
[337130453,1725449449346,-3266.49,0.00014369,2]
[337130454,1725449449359,-500.0,0.00014369,2]
[337130455,1725449449369,-500.0,0.00014369,2]
[337130456,1725449449378,-2686.82,0.00014369,2]
[337130457,1725449449388,-3467.38,0.00014369,2]
[337130458,1725449449398,-2725.67,0.00014369,2]
[337130459,1725449449407,-1969.53,0.00014369,2]
[337130460,1725449449417,-2189.75,0.00014369,2]
[337130461,1725449449426,-4297.84,0.00014369,2]
[337130462,1725449449438,-3268.74,0.00014369,2]
[337130463,1725449449448,-735.12,0.00014372,2]
[337130464,1725449449457,-1122.8,0.00014372,2]
[337130465,1725449449467,-1264.8,0.00014372,2]
[337130466,1725449449476,-1258.15,0.00014372,2]
[337130467,1725449449486,-1814.06,0.00014372,2]
[337130468,1725449449495,-2485.24,0.00014372,2]
[337130469,1725449449505,-1692.86,0.00014372,2]
[337130470,1725449449514,-2881.94,0.00014372,2]
[337130471,1725449449524,-508.7964836,0.00014373,2]
[337130472,1725449449538,-246.96233354,0.00014373,2]
[337130473,1725449449547,-364.55703172,0.00014375,2]
[337130474,1725449449556,-1910.95091377,0.00014375,2]
[337130475,1725449449566,-159.52,0.00014376,2]
[337130476,1725449449575,-533.47,0.00014376,2]
[337130477,1725449449585,-500.0,0.00014376,2]
[337130478,1725449449594,-500.0,0.00014376,2]
[337130479,1725449449603,-2461.64325602,0.00014376,2]
[337130480,1725449449613,-500.0,0.00014377,2]
[337130481,1725449449623,-500.0,0.00014377,2]
[337130482,1725449449633,-23201.5,0.00014377,2]
[337130483,1725449449643,-5539.45,0.00014377,2]
[337130484,1725449449652,-1688.75,0.00014377,2]
[337130485,1725449449661,-13416.06,0.00014377,2]
[337130486,1725449449671,-535.76,0.00014377,2]
[337130487,1725449449680,-3433.42,0.00014377,2]
[337130488,1725449449690,-2953.99,0.00014377,2]
[337130489,1725449449699,-2697.86,0.00014377,2]
[337130490,1725449449708,-2455.98,0.00014377,2]
[337130491,1725449449718,-1458.47,0.00014377,2]
[337130492,1725449449727,-1539.43,0.00014377,2]
[337130493,1725449449737,-1663.46,0.00014377,2]
[337130494,1725449449746,-1537.73,0.00014377,2]
[337130495,1725449449755,-266.62072727,0.00014377,2]
[337130496,1725449449764,-319.6165776,0.00014377,2]
[337130497,1725449449774,-3148.4,0.00014377,2]
[337130498,1725449449785,-500.0,0.00014377,2]
[337130499,1725449449794,-500.0,0.00014377,2]
[337130500,1725449449804,-500.0,0.00014377,2]
[337130501,1725449449813,-2030.75,0.00014377,2]
[337130502,1725449449823,-528.34,0.00014377,2]
[337130503,1725449449833,-500.0,0.00014377,2]
[337130504,1725449449842,-159.52,0.00014377,2]
[337130505,1725449449851,-159.52,0.00014377,2]
[337130506,1725449449861,-533.47,0.00014377,2]
[337130507,1725449449870,-533.47,0.00014377,2]
[337130508,1725449449879,-500.0,0.00014377,2]
[337130509,1725449449889,-500.0,0.00014377,2]
[337130510,1725449449899,-974.58,0.00014377,2]
[337130511,1725449449908,-500.0,0.00014377,2]
[337130512,1725449449917,-520.8,0.00014377,2]
[337130513,1725449449927,-518.06,0.00014377,2]
[337130514,1725449449937,-500.0,0.00014377,2]
[337130515,1725449449947,-500.0,0.00014377,2]
[337130516,1725449449956,-500.0,0.00014377,2]
[337130517,1725449449965,-500.0,0.00014377,2]
[337130518,1725449449975,-500.0,0.00014377,2]
[337130519,1725449449985,-968.0,0.00014378,2]
[337130520,1725449449995,-735.12,0.00014378,2]
[337130521,1725449450004,-735.12,0.00014378,2]
[337130522,1725449450013,-735.12,0.00014378,2]
[337130523,1725449450022,-1122.8,0.00014378,2]
[337130524,1725449450033,-1122.8,0.00014378,2]
[337130525,1725449450043,-1122.8,0.00014378,2]
[337130526,1725449450052,-1264.8,0.00014378,2]
[337130527,1725449450062,-1264.8,0.00014378,2]
[337130528,1725449450071,-1264.8,0.00014378,2]
[337130529,1725449450081,-23201.5,0.00014378,2]
[337130530,1725449450090,-23201.5,0.00014378,2]
[337130531,1725449450100,-1258.15,0.00014378,2]
[337130532,1725449450109,-1258.15,0.00014378,2]
[337130533,1725449450118,-1258.15,0.00014378,2]
[337130534,1725449450127,-5539.45,0.00014378,2]
[337130535,1725449450137,-5539.45,0.00014378,2]
[337130536,1725449450146,-1688.75,0.00014378,2]
[337130537,1725449450155,-1688.75,0.00014378,2]
[337130538,1725449450165,-1814.06,0.00014378,2]
[337130539,1725449450174,-1814.06,0.00014378,2]
[337130540,1725449450183,-1814.06,0.00014378,2]
[337130541,1725449450192,-13416.06,0.00014378,2]
[337130542,1725449450201,-13416.06,0.00014378,2]
[337130543,1725449450211,-535.76,0.00014378,2]
[337130544,1725449450221,-535.76,0.00014378,2]
[337130545,1725449450230,-2485.24,0.00014378,2]
[337130546,1725449450241,-2485.24,0.00014378,2]
[337130547,1725449450250,-2485.24,0.00014378,2]
[337130548,1725449450260,-3433.42,0.00014378,2]
[337130549,1725449450269,-3433.42,0.00014378,2]
[337130550,1725449450280,-2953.99,0.00014378,2]
[337130551,1725449450289,-2953.99,0.00014378,2]
[337130552,1725449450298,-1692.86,0.00014378,2]
[337130553,1725449450307,-1692.86,0.00014378,2]
[337130554,1725449450317,-1692.86,0.00014378,2]
[337130555,1725449450326,-2697.86,0.00014378,2]
[337130556,1725449450335,-2697.86,0.00014378,2]
[337130557,1725449450344,-2455.98,0.00014378,2]
[337130558,1725449450357,-2455.98,0.00014378,2]
[337130559,1725449450366,-1458.47,0.00014378,2]
[337130560,1725449450375,-1458.47,0.00014378,2]
[337130561,1725449450384,-1539.43,0.00014378,2]
[337130562,1725449450395,-1539.43,0.00014378,2]
[337130563,1725449450404,-1663.46,0.00014378,2]
[337130564,1725449450413,-1663.46,0.00014378,2]
[337130565,1725449450422,-1621.85,0.00014378,2]
[337130566,1725449450433,-1621.85,0.00014378,2]
[337130567,1725449450442,-1621.85,0.00014378,2]
[337130568,1725449450451,-1537.73,0.00014378,2]
[337130569,1725449450460,-1537.73,0.00014378,2]
[337130570,1725449450469,-2881.94,0.00014378,2]
[337130571,1725449450478,-2881.94,0.00014378,2]
[337130572,1725449450487,-2881.94,0.00014378,2]
[337130573,1725449450496,-6092.26,0.00014378,2]
[337130574,1725449450505,-6092.26,0.00014378,2]
[337130575,1725449450514,-6092.26,0.00014378,2]
[337130576,1725449450523,-1434.96,0.00014378,2]
[337130577,1725449450535,-1434.96,0.00014378,2]
[337130578,1725449450544,-1434.96,0.00014378,2]
[337130579,1725449450553,-2641.74,0.00014378,2]
[337130580,1725449450563,-2641.74,0.00014378,2]
[337130581,1725449450572,-2641.74,0.00014378,2]
[337130582,1725449450581,-1998.34,0.00014378,2]
[337130583,1725449450590,-1998.34,0.00014378,2]
[337130584,1725449450599,-1998.34,0.00014378,2]
[337130585,1725449450609,-1743.77,0.00014378,2]
[337130586,1725449450618,-1743.77,0.00014378,2]
[337130587,1725449450627,-1743.77,0.00014378,2]
[337130588,1725449450636,-2069.39,0.00014378,2]
[337130589,1725449450645,-2069.39,0.00014378,2]
[337130590,1725449450654,-2069.39,0.00014378,2]
[337130591,1725449450664,-1619.01,0.00014378,2]
[337130592,1725449450673,-1619.01,0.00014378,2]
[337130593,1725449450683,-1619.01,0.00014378,2]
[337130594,1725449450692,-4222.26,0.00014378,2]
[337130595,1725449450702,-4222.26,0.00014378,2]
[337130596,1725449450711,-4222.26,0.00014378,2]
[337130597,1725449450720,-2718.35,0.00014378,2]
[337130598,1725449450730,-2718.35,0.00014378,2]
[337130599,1725449450740,-2718.35,0.00014378,2]
[337130600,1725449450749,-2191.73,0.00014378,2]
[337130601,1725449450934,-2191.73,0.00014378,2]
[337130602,1725449450944,-2191.73,0.00014378,2]
[337130603,1725449450953,-2886.04,0.00014378,2]
[337130604,1725449450962,-2886.04,0.00014378,2]
[337130605,1725449450971,-2886.04,0.00014378,2]
[337130606,1725449450981,-3130.22,0.00014378,2]
[337130607,1725449450990,-3130.22,0.00014378,2]
[337130608,1725449450999,-3130.22,0.00014378,2]
[337130609,1725449451008,-5307.94,0.00014378,2]
[337130610,1725449451017,-5307.94,0.00014378,2]
[337130611,1725449451029,-5307.94,0.00014378,2]
[337130612,1725449451038,-1955.73,0.00014378,2]
[337130613,1725449451047,-1955.73,0.00014378,2]
[337130614,1725449451058,-1955.73,0.00014378,2]
[337130615,1725449451067,-2371.43,0.00014378,2]
[337130616,1725449451077,-2371.43,0.00014378,2]
[337130617,1725449451086,-2371.43,0.00014378,2]
[337130618,1725449451096,-1668.35,0.00014378,2]
[337130619,1725449451106,-1668.35,0.00014378,2]
[337130620,1725449451117,-1668.35,0.00014378,2]
[337130621,1725449451127,-3836.89,0.00014378,2]
[337130622,1725449451138,-3836.89,0.00014378,2]
[337130623,1725449451148,-3836.89,0.00014378,2]
[337130624,1725449451158,-1987.06,0.00014378,2]
[337130625,1725449451168,-1987.06,0.00014378,2]
[337130626,1725449451177,-1987.06,0.00014378,2]
[337130627,1725449451186,-1686.85,0.00014378,2]
[337130628,1725449451196,-1686.85,0.00014378,2]
[337130629,1725449451205,-1686.85,0.00014378,2]
[337130630,1725449451214,-6705.01,0.00014378,2]
[337130631,1725449451224,-6705.01,0.00014378,2]
[337130632,1725449451233,-6705.01,0.00014378,2]
[337130633,1725449451243,-3942.48,0.00014378,2]
[337130634,1725449451252,-3942.48,0.00014378,2]
[337130635,1725449451263,-3942.48,0.00014378,2]
[337130636,1725449451272,-2468.26,0.00014378,2]
[337130637,1725449451283,-2468.26,0.00014378,2]
[337130638,1725449451292,-2468.26,0.00014378,2]
[337130639,1725449451302,-2723.93,0.00014378,2]